bitfinex/quotes_SOLUSD_20251207
["timestamp","ask_amount","ask_price","bid_price","bid_amount"]
[1765149801773,8.80994492,131.47,131.45,6.0666944]
[1765149801956,9.46994492,131.47,131.46,6.0666944]
[1765149802156,0.66,131.46,131.45,6.0666944]
[1765149804293,0.66,131.5,131.45,6.0666944]
[1765149804521,0.66,131.5,131.47,6.0666944]
[1765149804878,0.66,131.5,131.48,6.0666944]
[1765149805892,9.46994492,131.5,131.48,6.0666944]
[1765149807586,0.66,131.49,131.48,6.0666944]
[1765149808191,8.80994492,131.5,131.48,6.0666944]
[1765149808415,9.46994492,131.5,131.48,6.0666944]
[1765149809116,9.46994492,131.5,131.49,6.0666944]
[1765149809414,9.46994492,131.5,131.48,6.0666944]
[1765149809809,0.66,131.49,131.48,6.0666944]
[1765149810493,8.80994492,131.5,131.48,6.0666944]
[1765149810817,17.07452014,131.5,131.46,7.6068315]
[1765149811018,9.46994492,131.5,131.48,6.0666944]
[1765149811213,8.80994492,131.5,131.48,6.0666944]
[1765149811599,0.66,131.49,131.48,6.0666944]
[1765149812087,8.80994492,131.5,131.48,6.0666944]
[1765149812293,9.46994492,131.5,131.48,6.0666944]
[1765149812919,0.66,131.49,131.48,6.0666944]
[1765149813901,0.66,131.49,131.46,69.8068315]
[1765149814202,0.66,131.49,131.48,6.0666944]
[1765149815814,8.54,131.51,131.48,6.0666944]
[1765149816014,9.2,131.51,131.49,6.0666944]
[1765149816310,9.2,131.51,131.5,6.0666944]
[1765149816533,0.1,131.51,131.5,6.0666944]
[1765149816734,0.1,131.51,131.5,2.26122134]
[1765149817923,0.1,131.51,131.5,9.86578407]
[1765149820446,0.1,131.51,131.5,7.60456273]
[1765149820748,0.1,131.51,131.5,9.86578407]
[1765149821143,0.76,131.51,131.5,2.26122134]
[1765149821448,0.1,131.51,131.5,10.06578407]
[1765149821657,0.1,131.51,131.5,9.86578407]
[1765149822042,0.1,131.51,131.5,72.26578407]
[1765149824428,0.1,131.52,131.5,80.70578407]
[1765149824633,0.1,131.52,131.51,2.46122134]
[1765149824968,0.1,131.52,131.51,64.66122134]
[1765149825460,0.1,131.52,131.51,64.46122134]
[1765149825946,0.1,131.52,131.51,64.66122134]
[1765149826452,0.1,131.54,131.52,7.60340632]
[1765149826671,0.1,131.54,131.53,11.3061067]
[1765149826840,0.1,131.54,131.53,11.5061067]
[1765149827751,0.2,131.56,131.55,16.308864]
[1765149827965,0.2,131.56,131.55,18.57008534]
[1765149828752,0.2,131.56,131.55,29.96197662]
[1765149832130,0.2,131.56,131.55,92.16197662]
[1765149833938,0.2,131.56,131.55,92.36197662]
[1765149834139,0.2,131.56,131.55,92.16197662]
[1765149834643,0.2,131.56,131.55,95.47445838]
[1765149834849,0.2,131.56,131.55,33.47445838]
[1765149836178,0.2,131.56,131.55,33.27445838]
[1765149837462,0.2,131.56,131.55,33.47445838]
[1765149837839,0.2,131.56,131.55,33.27445838]
[1765149838053,0.2,131.56,131.55,33.47445838]
[1765149838360,0.2,131.56,131.55,33.27445838]
[1765149839747,0.2,131.56,131.55,33.47445838]
[1765149840746,0.67,131.62,131.55,52.47863929]
[1765149841068,0.1,131.63,131.61,9.36392202]
[1765149841243,0.1,131.63,131.62,9.36392202]
[1765149841443,0.1,131.64,131.62,25.67278602]
[1765149841670,0.2,131.65,131.63,9.56392202]
[1765149841964,0.2,131.65,131.64,9.36392202]
[1765149842364,0.2,131.65,131.64,16.96039725]
[1765149842542,0.2,131.65,131.64,9.36392202]
[1765149843056,0.91,131.65,131.64,9.36392202]
[1765149847070,0.91,131.65,131.63,9.36392202]
[1765149847278,0.71,131.64,131.63,9.36392202]
[1765149848595,0.71,131.64,131.62,9.36392202]
[1765149848596,8.30647523,131.64,131.62,9.36392202]
[1765149848773,8.30647523,131.64,131.61,3.5280465]
[1765149849072,0.71,131.63,131.61,3.5280465]
[1765149849664,8.30712435,131.63,131.61,3.5280465]
[1765149850161,7.5966136,131.64,131.62,3.5280465]
[1765149850364,7.5966136,131.64,131.63,3.5280465]
[1765149850564,7.5966136,131.64,131.62,3.5280465]
[1765149850884,0.71,131.63,131.62,3.5280465]
[1765149851780,8.30705234,131.63,131.62,3.5280465]
[1765149853560,0.71,131.63,131.62,3.5280465]
[1765149853761,8.30705234,131.63,131.62,3.5280465]
[1765149854576,0.71,131.63,131.61,3.5280465]
[1765149854786,0.71,131.62,131.61,3.5280465]
[1765149858404,8.30772289,131.62,131.6,3.5280465]
[1765149858904,0.71,131.61,131.6,3.5280465]
[1765149860784,8.30820682,131.61,131.6,3.5280465]
[1765149860976,8.30820682,131.61,131.58,3.5280465]
[1765149861193,0.66,131.6,131.57,3.5280465]
[1765149862097,8.25921431,131.6,131.58,3.5280465]
[1765149862285,8.25921431,131.6,131.57,3.5280465]
[1765149862467,0.66,131.59,131.57,3.5280465]
[1765149863380,0.66,131.59,131.58,3.5280465]
[1765149863780,18.99551705,131.61,131.58,11.12788058]
[1765149863781,0.66,131.61,131.58,11.12788058]
[1765149863992,16.01664988,131.64,131.6,3.5280465]
[1765149864196,0.66,131.63,131.62,3.5280465]
[1765149865279,0.66,131.63,131.6,3.5280465]
[1765149866602,7.59762953,131.62,131.6,3.5280465]
[1765149867083,0.66,131.61,131.6,3.5280465]
[1765149867975,9.08,131.64,131.6,11.32680181]
[1765149868175,9.08,131.64,131.63,3.5280465]
[1765149868417,0.66,131.64,131.63,3.5280465]
[1765149868720,0.2,131.65,131.63,3.5280465]
[1765149868915,0.2,131.65,131.64,3.5280465]
[1765149869221,0.86,131.65,131.64,3.5280465]
[1765149869608,0.2,131.65,131.64,3.5280465]
[1765149870118,0.86,131.65,131.64,3.5280465]
[1765149870905,8.45589821,131.65,131.64,3.5280465]
[1765149871205,8.45589821,131.65,131.63,3.5280465]
[1765149871411,0.66,131.64,131.63,3.5280465]
[1765149874311,8.25647523,131.64,131.63,3.5280465]
[1765149876028,0.66,131.64,131.63,3.5280465]
[1765149878916,0.2,131.65,131.63,3.5280465]
[1765149879121,8.45589821,131.65,131.64,3.5280465]
[1765149879338,7.79589821,131.65,131.64,3.5280465]
[1765149879714,8.45589821,131.65,131.62,3.5280465]
[1765149879923,0.66,131.64,131.62,3.5280465]
[1765149880122,0.66,131.64,131.63,3.5280465]
[1765149881026,8.25647523,131.64,131.63,3.5280465]
[1765149881432,0.66,131.64,131.63,3.5280465]
[1765149881810,7.79613203,131.65,131.63,3.5280465]
[1765149882010,7.79613203,131.65,131.64,3.5280465]
[1765149882217,8.45613203,131.65,131.64,3.5280465]
[1765149883339,0.86,131.65,131.64,3.5280465]
[1765149883921,8.45589821,131.65,131.64,3.5280465]
[1765149884746,0.86,131.65,131.64,3.5280465]
[1765149885424,0.86,131.65,131.59,70.62]
[1765149885738,0.86,131.65,131.61,3.5280465]
[1765149885739,0.66,131.64,131.61,3.5280465]
[1765149886416,7.59705234,131.63,131.61,3.5280465]
[1765149886616,7.59705234,131.63,131.6,3.5280465]
[1765149886843,0.66,131.62,131.59,3.5280465]
[1765149888021,7.59820682,131.61,131.59,3.5280465]
[1765149888533,0.66,131.6,131.59,3.5280465]
[1765149888713,0.66,131.6,131.58,3.5280465]
[1765149890652,8.258863,131.6,131.58,3.5280465]
[1765149891114,0.66,131.59,131.58,3.5280465]
[1765149891320,0.66,131.62,131.58,3.5280465]
[1765149891521,0.66,131.62,131.61,3.5280465]
[1765149894025,16.01724244,131.63,131.61,3.5280465]
[1765149894226,9.08,131.63,131.61,3.5280465]
[1765149894537,0.66,131.62,131.61,3.5280465]
[1765149894726,0.66,131.62,131.61,2.25771493]
[1765149896524,8.25768759,131.62,131.58,7.59958308]
[1765149896737,8.25768759,131.62,131.6,2.25771493]
[1765149896936,0.72,131.61,131.6,2.25771493]
[1765149898154,0.72,131.62,131.6,2.25771493]
[1765149898352,16.01727437,131.63,131.61,2.25771493]
[1765149898654,16.01727437,131.63,131.6,2.25771493]
[1765149898854,16.01727437,131.63,131.61,2.25771493]
[1765149899040,0.72,131.62,131.61,2.25771493]
[1765149900347,9.14,131.63,131.61,2.25771493]
[1765149900658,0.72,131.62,131.61,2.25771493]
[1765149901236,0.72,131.62,131.59,64.45771493]
[1765149901427,0.72,131.62,131.57,2.25771493]
[1765149901642,2.97771493,131.62,131.57,2.25771493]
[1765149901930,0.72,131.62,131.57,2.25771493]
[1765149902166,43.39376207,131.63,131.57,2.25771493]
[1765149902167,7.59878419,131.6,131.57,2.25771493]
[1765149902529,0.72,131.59,131.57,2.25771493]
[1765149903460,8.31842273,131.61,131.58,2.25771493]
[1765149903845,0.72,131.6,131.58,2.25771493]
[1765149904680,0.72,131.6,131.59,2.25771493]
[1765149905646,8.31878419,131.6,131.58,2.25771493]
[1765149906187,0.72,131.59,131.58,2.25771493]
[1765149908485,7.59780005,131.62,131.58,9.85756976]
[1765149908783,0.72,131.61,131.59,2.25771493]
[1765149909584,0.72,131.61,131.6,2.25771493]
[1765149909786,8.31828561,131.61,131.58,64.45771493]
[1765149910185,0.72,131.6,131.58,64.45771493]
[1765149910559,0.72,131.6,131.57,2.25771493]
[1765149911381,7.59936165,131.59,131.56,2.25771493]
[1765149911583,7.59936165,131.59,131.55,2.25771493]
[1765149911788,0.72,131.58,131.55,2.25771493]
[1765149912364,0.72,131.58,131.54,2.25771493]
[1765149912791,0.72,131.58,131.53,7.60266775]
[1765149912997,0.72,131.58,131.54,2.25771493]
[1765149913605,7.60051683,131.57,131.53,2.25771493]
[1765149913790,26.60180891,131.57,131.53,2.25771493]
[1765149913990,0.72,131.56,131.53,2.25771493]
[1765149915106,0.72,131.56,131.52,7.60333283]
[1765149915107,8.32145859,131.56,131.54,2.25771493]
[1765149915603,0.72,131.55,131.53,2.25771493]
[1765149918907,8.3216937,131.55,131.53,2.25771493]
[1765149919402,0.72,131.54,131.53,2.25771493]
[1765149919718,0.72,131.54,131.51,2.25771493]
[1765149921302,8.3227314,131.54,131.51,2.25771493]
[1765149921902,0.69,131.53,131.51,2.25771493]
[1765149923323,0.69,131.53,131.52,2.25771493]
[1765149923832,8.29282825,131.53,131.51,2.25771493]
[1765149924009,8.29282825,131.53,131.48,69.80535991]
[1765149924325,8.29282825,131.53,131.5,2.25771493]
[1765149924326,0.69,131.52,131.5,2.25771493]
[1765149924501,0.69,131.52,131.51,2.25771493]
[1765149924703,0.69,131.52,131.5,2.25771493]
[1765149925716,8.2936719,131.52,131.5,2.25771493]
[1765149926097,9.11,131.55,131.51,2.45771493]
[1765149926313,0.69,131.54,131.53,2.25771493]
[1765149926995,0.69,131.54,131.52,2.25771493]
[1765149927196,27.29820382,131.54,131.47,78.708864]
[1765149927413,27.29820382,131.54,131.5,2.25771493]
[1765149927598,7.60257816,131.54,131.52,2.25771493]
[1765149927826,8.29257816,131.54,131.52,2.25771493]
[1765149927996,8.29257816,131.54,131.53,2.25771493]
[1765149929252,0.69,131.54,131.53,2.25771493]
[1765149930441,8.29225026,131.54,131.53,2.25771493]
[1765149930855,8.29225026,131.54,131.5,7.80433583]
[1765149931149,0.69,131.53,131.5,2.25771493]
[1765149932954,0.69,131.53,131.52,2.25771493]
[1765149933356,8.29225026,131.54,131.52,2.25771493]
[1765149933528,0.69,131.53,131.52,2.25771493]
[1765149934345,8.29282825,131.53,131.51,2.25771493]
[1765149934862,0.69,131.52,131.5,2.25771493]
[1765149935162,0.69,131.52,131.51,2.25771493]
[1765149936766,0.69,131.52,131.49,69.80497256]
[1765149936958,0.69,131.52,131.51,2.25771493]
[1765149937861,0.69,131.52,131.5,2.25771493]
[1765149938637,0.69,131.52,131.51,2.25771493]
[1765149941469,16.02189412,131.55,131.51,10.06165965]
[1765149941641,7.60189412,131.55,131.53,2.25771493]
[1765149941845,0.69,131.54,131.53,2.25771493]
[1765149942246,7.60189412,131.55,131.53,2.25771493]
[1765149942452,8.29051683,131.57,131.54,2.25771493]
[1765149942856,0.69,131.56,131.54,2.25771493]
[1765149943054,7.60004993,131.58,131.55,2.45771493]
[1765149943374,7.60004993,131.58,131.56,2.25771493]
[1765149943375,8.29004993,131.58,131.56,2.25771493]
[1765149943581,0.69,131.57,131.56,2.25771493]
[1765149943892,0.69,131.57,131.55,2.25771493]
[1765149944380,0.69,131.57,131.54,2.25771493]
[1765149945286,0.69,131.57,131.55,2.25771493]
[1765149945595,7.60109455,131.56,131.54,2.25771493]
[1765149946177,0.69,131.55,131.54,2.25771493]
[1765149946701,7.60109455,131.56,131.54,2.25771493]
[1765149946999,8.29109455,131.56,131.54,2.25771493]
[1765149948182,8.29109455,131.56,131.55,2.25771493]
[1765149949481,0.69,131.59,131.55,2.25771493]
[1765149949678,27.28574467,131.6,131.57,2.25771493]
[1765149949879,0.69,131.59,131.57,2.25771493]
[1765149950380,0.69,131.59,131.55,64.45771493]
[1765149951403,0.69,131.59,131.56,2.25771493]
[1765149951572,7.5999392,131.58,131.56,2.25771493]
[1765149951772,7.5999392,131.58,131.55,64.45771493]
[1765149951973,0.7,131.57,131.55,64.45771493]
[1765149952802,0.7,131.57,131.56,2.25771493]
[1765149955206,8.30051683,131.57,131.55,2.25771493]
[1765149955779,8.30051683,131.57,131.56,2.25771493]
[1765149956783,8.30051683,131.57,131.56,3.53078338]
[1765149959606,8.30051683,131.57,131.55,3.53078338]
[1765149959902,0.7,131.56,131.55,3.53078338]
[1765149960076,0.7,131.58,131.55,3.53078338]
[1765149961886,7.60051683,131.57,131.55,3.53078338]
[1765149962284,0.66,131.56,131.55,3.53078338]
[1765149964011,8.26109455,131.56,131.55,3.53078338]
[1765149965822,8.26109455,131.56,131.54,3.53078338]
[1765149966101,0.66,131.55,131.54,3.53078338]
[1765149966507,19.00046978,131.58,131.54,3.53078338]
[1765149966698,0.66,131.57,131.54,3.53078338]
[1765149968612,7.60109455,131.56,131.54,3.53078338]
[1765149969692,0.66,131.56,131.54,3.53078338]
[1765149970023,4.19078338,131.55,131.49,3.53078338]
[1765149970317,8.80994492,131.54,131.49,3.53078338]
[1765149970485,9.46994492,131.54,131.49,3.53078338]
[1765149970683,0.66,131.53,131.49,3.53078338]
[1765149971810,7.60340632,131.52,131.49,3.53078338]
[1765149972310,0.66,131.51,131.49,3.53078338]
[1765149972813,0.66,131.51,131.48,3.53078338]
[1765149973628,7.60456273,131.5,131.48,3.53078338]
[1765149974016,0.66,131.49,131.48,3.53078338]
[1765149974745,8.26456273,131.5,131.48,3.53078338]
[1765149974930,0.66,131.49,131.48,3.53078338]
[1765149976346,0.66,131.5,131.48,3.53078338]
[1765149976654,0.66,131.49,131.48,3.53078338]
[1765149980143,8.42,131.52,131.48,11.33609181]
[1765149980345,16.308864,131.55,131.51,3.53078338]
[1765149980346,0.66,131.55,131.51,3.53078338]
[1765149980531,0.66,131.55,131.53,3.53078338]
[1765149980844,0.66,131.54,131.51,3.53078338]
[1765149982628,8.26254188,131.54,131.51,3.53078338]
[1765149983126,0.69,131.53,131.51,3.53078338]
[1765149985027,8.29283477,131.53,131.51,3.53078338]
[1765149985434,0.69,131.52,131.51,3.53078338]
[1765149986166,0.69,131.52,131.5,3.53078338]
[1765149986532,0.69,131.52,131.51,3.53078338]
[1765149986967,8.29366258,131.52,131.5,3.53078338]
[1765149987331,0.69,131.51,131.5,3.53078338]
[1765149988256,7.60109455,131.56,131.5,3.73078338]
[1765149988463,7.60056292,131.57,131.55,3.53078338]
[1765149988679,0.69,131.56,131.55,3.53078338]
[1765149990651,7.60056292,131.57,131.55,3.53078338]
[1765149990865,0.69,131.56,131.55,3.53078338]
[1765149992478,0.69,131.57,131.55,3.53078338]
[1765149992771,0.69,131.57,131.56,3.53078338]
[1765149994650,8.28954853,131.59,131.56,3.53078338]
[1765149994881,8.28954853,131.59,131.57,3.53078338]
[1765149994882,0.69,131.58,131.57,3.53078338]
[1765149996569,8.42,131.6,131.57,3.53078338]
[1765149996570,16.70897954,131.6,131.57,3.53078338]
[1765149996862,0.69,131.59,131.58,3.53078338]
[1765149997456,8.28936165,131.59,131.58,3.53078338]
[1765149998257,0.69,131.59,131.58,3.53078338]
[1765149999191,23.90682463,131.62,131.58,11.33038857]
[1765149999364,23.90682463,131.62,131.56,19.00198168]
[1765149999365,9.31,131.65,131.61,3.53078338]
[1765149999681,28.30048129,131.65,131.62,3.53078338]
[1765149999861,0.69,131.64,131.62,3.53078338]
[1765150000684,7.59705234,131.63,131.62,3.53078338]
[1765150001089,8.28705234,131.63,131.62,3.53078338]
[1765150002283,27.61048129,131.65,131.62,3.53078338]
[1765150002284,7.59656145,131.64,131.62,3.53078338]
[1765150002587,7.59656145,131.64,131.63,3.53078338]
[1765150002588,0.69,131.64,131.63,3.53078338]
[1765150003359,16.21610229,131.65,131.63,3.53078338]
[1765150003577,9.31,131.65,131.64,3.53078338]
[1765150003777,0.2,131.65,131.64,3.53078338]
[1765150004179,0.2,131.65,131.64,3.73078338]
[1765150004861,0.2,131.65,131.64,3.53078338]
[1765150005468,0.2,131.65,131.64,11.12725861]
[1765150005683,0.2,131.65,131.64,11.32725861]
[1765150006489,0.2,131.65,131.64,11.12725861]
[1765150007077,0.2,131.65,131.64,11.32725861]
[1765150007668,0.2,131.65,131.64,11.12725861]
[1765150010490,0.2,131.65,131.63,0.2]
[1765150010680,0.2,131.65,131.64,3.53078338]
[1765150018696,0.2,131.65,131.64,2.25634591]
[1765150020721,0.2,131.65,131.64,72.25282114]
[1765150021309,0.2,131.67,131.66,2.25634591]
[1765150025302,0.2,131.67,131.66,9.85166719]
[1765150025514,9.12,131.73,131.67,0.2]
[1765150025695,9.12,131.73,131.72,2.25634591]
[1765150025897,7.59070897,131.74,131.72,2.25634591]
[1765150026625,0.72,131.73,131.72,2.25634591]
[1765150026926,8.3112852,131.73,131.72,2.25634591]
[1765150027299,0.72,131.73,131.72,2.25634591]
[1765150027922,7.59023894,131.75,131.72,2.25634591]
[1765150028214,0.72,131.74,131.73,2.25634591]
[1765150028720,16.308864,131.78,131.73,2.45634591]
[1765150028721,0.72,131.78,131.73,2.45634591]
[1765150028927,0.72,131.78,131.77,2.25634591]
[1765150029645,7.58797606,131.79,131.77,2.25634591]
[1765150029646,0.72,131.79,131.77,2.25634591]
[1765150029795,0.72,131.79,131.78,2.25634591]
[1765150030895,8.30782912,131.79,131.77,2.25634591]
[1765150031323,0.72,131.78,131.77,2.25634591]
[1765150031524,0.72,131.78,131.74,9.02538364]
[1765150031703,0.72,131.78,131.74,16.6159392]
[1765150031902,0.72,131.78,131.74,16.8159392]
[1765150032323,0.72,131.78,131.75,7.59011876]
[1765150033925,0.72,131.78,131.74,32.92482814]
[1765150034357,0.72,131.78,131.74,16.81596414]
[1765150037650,0.72,131.78,131.75,7.59002264]
[1765150037950,0.72,131.79,131.75,7.79002264]
[1765150038123,0.72,131.78,131.75,7.79002264]
[1765150038654,0.72,131.8,131.75,7.59002264]
[1765150038950,0.72,131.8,131.75,69.99002264]
[1765150039651,0.72,131.8,131.75,69.79002264]
[1765150039955,8.30752762,131.8,131.77,2.25634591]
[1765150040352,0.72,131.79,131.77,2.25634591]
[1765150040528,0.72,131.79,131.72,62.2]
[1765150040734,0.72,131.79,131.76,2.25634591]
[1765150041040,0.72,131.79,131.75,2.25634591]
[1765150041758,7.58840491,131.78,131.75,2.25634591]
[1765150042265,0.71,131.77,131.75,2.25634591]
[1765150042642,0.71,131.77,131.74,2.25634591]
[1765150043044,0.71,131.77,131.73,2.25634591]
[1765150044067,7.58955676,131.76,131.72,2.25634591]
[1765150044267,7.58955676,131.76,131.71,2.25634591]
[1765150044565,0.71,131.75,131.71,2.25634591]
[1765150045144,0.71,131.75,131.7,2.25634591]
[1765150046069,26.5674814,131.74,131.7,2.25634591]
[1765150046241,0.71,131.73,131.71,2.25634591]
[1765150047657,0.71,131.73,131.7,2.25634591]
[1765150048350,7.59186152,131.72,131.7,2.25634591]
[1765150048759,0.71,131.71,131.7,2.25634591]
[1765150051086,8.30243793,131.71,131.7,2.25634591]
[1765150051497,0.71,131.71,131.7,2.25634591]
[1765150054890,8.30243793,131.71,131.69,2.25634591]
[1765150055303,0.71,131.7,131.67,62.2]
[1765150055505,0.71,131.7,131.68,2.25634591]
[1765150055974,8.30324949,131.7,131.68,2.25634591]
[1765150056299,0.71,131.7,131.68,2.25634591]
[1765150056483,0.71,131.69,131.68,2.25634591]
[1765150056886,0.71,131.69,131.67,2.25634591]
[1765150057187,0.71,131.69,131.68,2.25634591]
[1765150057391,0.71,131.72,131.68,2.45634591]
[1765150057588,0.71,131.71,131.7,2.25634591]
[1765150058388,8.30257955,131.71,131.69,2.25634591]
[1765150058791,0.71,131.7,131.69,2.25634591]
[1765150059997,0.71,131.71,131.69,2.25634591]
[1765150060380,8.30258725,131.71,131.69,2.25634591]
[1765150060893,0.71,131.7,131.69,2.25634591]
[1765150061487,0.71,131.7,131.68,2.25634591]
[1765150062210,0.71,131.73,131.69,9.8497998]
[1765150062406,0.71,131.77,131.72,2.25634591]
[1765150062704,0.71,131.77,131.76,2.25634591]
[1765150063003,0.71,131.77,131.74,2.25634591]
[1765150064111,0.71,131.77,131.73,2.25634591]
[1765150064409,7.58955676,131.76,131.73,2.25634591]
[1765150064589,7.58955676,131.76,131.74,2.25634591]
[1765150064783,0.71,131.75,131.74,2.25634591]
[1765150065290,7.5891575,131.77,131.74,2.25634591]
[1765150065291,0.71,131.77,131.74,2.25634591]
[1765150065495,0.71,131.78,131.76,2.25634591]
[1765150065699,0.71,131.8,131.77,2.25634591]
[1765150065875,0.71,131.8,131.79,2.25634591]
[1765150067182,8.29725341,131.8,131.79,2.25634591]
[1765150068118,0.71,131.8,131.79,2.25634591]
[1765150069683,8.29725341,131.8,131.79,2.25634591]
[1765150071707,8.29725341,131.8,131.78,2.25634591]
[1765150071918,0.67,131.79,131.76,7.58947593]
[1765150072290,0.1,131.81,131.79,7.58772086]
[1765150072596,0.77,131.81,131.79,7.58772086]
[1765150072901,0.1,131.81,131.79,7.58772086]
[1765150073091,0.1,131.81,131.8,2.25634591]
[1765150075321,0.77,131.81,131.8,2.25634591]
[1765150078721,0.77,131.81,131.8,3.51710211]
[1765150079442,8.35667779,131.81,131.79,3.51710211]
[1765150079846,0.68,131.8,131.77,7.5886516]
[1765150080048,0.68,131.8,131.79,3.51710211]
[1765150080248,7.68667779,131.81,131.79,11.10457419]
[1765150080249,0.1,131.81,131.79,11.10457419]
[1765150080545,0.78,131.81,131.8,3.51710211]
[1765150081624,8.36667779,131.81,131.8,3.51710211]
[1765150081930,8.36667779,131.81,131.79,3.51710211]
[1765150082126,0.68,131.8,131.79,3.51710211]
[1765150082454,0.68,131.8,131.76,62.2]
[1765150082622,0.68,131.8,131.77,3.51710211]
[1765150083330,7.58782912,131.79,131.78,3.51710211]
[1765150083741,8.26782912,131.79,131.78,3.51710211]
[1765150085150,8.26782912,131.79,131.77,3.51710211]
[1765150085340,0.68,131.78,131.77,3.51710211]
[1765150085518,8.26840491,131.78,131.76,3.51710211]
[1765150085716,8.26840491,131.78,131.75,3.51710211]
[1765150085958,0.68,131.77,131.75,3.51710211]
[1765150086133,0.68,131.77,131.76,3.51710211]
[1765150087131,0.68,131.77,131.75,3.51710211]
[1765150087761,8.26924791,131.77,131.75,3.51710211]
[1765150088162,0.68,131.76,131.75,3.51710211]
[1765150090156,8.26955676,131.76,131.74,3.51710211]
[1765150090461,0.68,131.76,131.74,3.51710211]
[1765150090662,0.68,131.75,131.74,3.51710211]
[1765150094460,8.26965776,131.76,131.74,3.51710211]
[1765150094666,8.26965776,131.76,131.75,3.51710211]
[1765150100738,8.26965776,131.76,131.74,3.51710211]
[1765150101168,0.68,131.75,131.74,3.51710211]
[1765150102050,0.68,131.76,131.74,3.51710211]
[1765150103364,8.26965819,131.76,131.74,3.51710211]
[1765150103566,0.68,131.76,131.75,3.51710211]
[1765150104273,7.58787381,131.79,131.75,3.51710211]
[1765150104480,7.58787381,131.79,131.74,7.59060095]
[1765150104481,0.78,131.81,131.78,3.51710211]
[1765150104671,0.78,131.81,131.79,3.51710211]
[1765150105779,7.58731553,131.8,131.79,3.51710211]
[1765150105977,8.26731553,131.8,131.79,3.51710211]
[1765150106178,7.58731553,131.8,131.79,3.51710211]
[1765150106481,8.26731553,131.8,131.79,3.51710211]
[1765150109181,8.26731553,131.8,131.73,86.908864]
[1765150109182,8.80994492,131.79,131.73,3.51710211]
[1765150109365,13.00704703,131.79,131.73,3.51710211]
[1765150109662,0.68,131.78,131.73,3.51710211]
[1765150109860,0.68,131.78,131.74,3.51710211]
[1765150110679,7.58898079,131.77,131.74,3.51710211]
[1765150110988,26.56143278,131.77,131.74,3.51710211]
[1765150111171,0.68,131.76,131.74,3.51710211]
[1765150111687,7.58848089,131.78,131.75,3.51710211]
[1765150111985,7.58848089,131.78,131.77,3.51710211]
[1765150112483,8.26848089,131.78,131.77,3.51710211]
[1765150113254,0.68,131.78,131.77,3.51710211]
[1765150113458,0.78,131.81,131.77,3.51710211]
[1765150113657,8.36685524,131.81,131.79,3.51710211]
[1765150114596,8.36685524,131.81,131.76,7.58936992]
[1765150114797,0.68,131.8,131.79,3.51710211]
[1765150115677,8.26725341,131.8,131.78,3.51710211]
[1765150116063,0.68,131.79,131.78,3.51710211]
[1765150116478,8.26725341,131.8,131.78,3.51710211]
[1765150116680,7.58725341,131.8,131.79,3.51710211]
[1765150116874,7.58725341,131.8,131.78,3.51710211]
[1765150117378,0.68,131.79,131.78,3.51710211]
[1765150118122,8.26782912,131.79,131.76,3.51710211]
[1765150118412,35.63740192,131.79,131.76,3.51710211]
[1765150118583,0.68,131.78,131.76,3.51710211]
[1765150118987,0.68,131.78,131.77,3.51710211]
[1765150120314,15.98782912,131.79,131.77,3.51710211]
[1765150120608,16.66782912,131.79,131.78,3.51710211]
[1765150120782,8.4,131.79,131.78,3.51710211]
[1765150121306,9.08,131.79,131.78,3.51710211]
[1765150122412,16.66782912,131.79,131.78,3.51710211]
[1765150126635,16.66782912,131.79,131.77,3.51710211]
[1765150126820,0.68,131.78,131.75,69.78988191]
[1765150127012,15.98782912,131.79,131.77,3.51710211]
[1765150127213,9.08,131.79,131.78,3.51710211]
[1765150128538,0.1,131.81,131.78,11.10530754]
[1765150128715,0.1,131.81,131.8,3.51710211]
[1765150128911,0.78,131.81,131.8,3.51710211]
[1765150129114,8.36667779,131.81,131.79,3.51710211]
[1765150129417,8.36667779,131.81,131.8,3.51710211]
[1765150131632,0.1,131.81,131.8,3.51710211]
[1765150132040,0.77,131.81,131.8,3.51710211]
[1765150132536,0.1,131.81,131.8,3.51710211]
[1765150132941,0.77,131.81,131.8,3.51710211]
[1765150137236,8.35667779,131.81,131.79,3.51710211]